fUST/lending_fUST_20250613
["ID","MTS","AMOUNT","RATE_DAILY","PERIOD"]
[365655085,1749821439961,-365.2062734,0.0002211,2]
[365655088,1749821439973,-347.8408316,0.0002211,2]
[365655090,1749821439983,-500.0,0.00022111,2]
[365655092,1749821439993,-500.0,0.00022133,2]
[365655094,1749821440003,-500.0,0.00022139,2]
[365655096,1749821440012,-426.13700391,0.00022139,2]
[365655098,1749821440021,-500.0,0.00022139,2]
[365655099,1749821440031,-287.65116742,0.00022139,2]
[365655101,1749821440040,-700.39,0.0002219,4]
[365655103,1749821440050,-564.88,0.0002219,4]
[365655105,1749821440060,-697.68,0.0002219,4]
[365655107,1749821440070,-460.0,0.0002219,4]
[365655109,1749821440079,-460.0,0.0002219,4]
[365655111,1749821440090,-460.0,0.0002219,4]
[365655113,1749821440100,-1380.34,0.0002219,4]
[365655115,1749821440109,-460.0,0.0002219,4]
[365655117,1749821440119,-609.67,0.0002219,4]
[365655119,1749821440129,-646.42,0.0002219,4]
[365655121,1749821440139,-609.14,0.0002219,4]
[365655123,1749821440149,-460.0,0.00022191,2]
[365655125,1749821440158,-465.85,0.00022191,4]
[365655126,1749821440168,-460.0,0.00022191,4]
[365655127,1749821440179,-460.0,0.00022191,4]
[365655129,1749821440188,-460.0,0.00022191,4]
[365655131,1749821440198,-1004.53,0.00022191,4]
[365655133,1749821440208,-460.0,0.00022191,4]
[365655135,1749821440218,-1628.74046315,0.0002221,6]
[365655137,1749821440228,-500.0,0.00022243,2]
[365655138,1749821440238,-367.89843496,0.00022243,2]
[365655140,1749821440247,-500.0,0.00022243,2]
[365655142,1749821440257,-500.0,0.00022243,2]
[365655144,1749821440267,-500.0,0.00022243,2]
[365655145,1749821440278,-541.34304117,0.00022243,2]
[365655147,1749821440288,-500.0,0.00022243,2]
[365655149,1749821440303,-502.21576639,0.00022243,2]
[365655151,1749821440313,-500.0,0.00022243,2]
[365655153,1749821440323,-500.0,0.000223,2]
[365655154,1749821440333,-500.0,0.00022328,2]
[365655155,1749821440346,-250.0,0.00022357,2]
[365655156,1749821440356,-2473.0,0.00022366,2]
[365655157,1749821440366,-1220.57,0.00022372,4]
[365655158,1749821440376,-460.0,0.00022372,4]
[365655160,1749821440386,-500.0,0.00022375,2]
[365655161,1749821440396,-1628.74046315,0.00022417,7]
[365655162,1749821440406,-500.0,0.00022464,2]
[365655163,1749821440416,-160.0,0.00022464,2]
[365655164,1749821440426,-700.39,0.00022464,4]
[365655166,1749821440435,-564.88,0.00022464,4]
[365655167,1749821440445,-697.68,0.00022464,4]
[365655169,1749821440455,-460.0,0.00022464,4]
[365655170,1749821440464,-460.0,0.00022464,4]
[365655171,1749821440477,-460.0,0.00022464,4]
[365655172,1749821440487,-1380.34,0.00022464,4]
[365655173,1749821440497,-460.0,0.00022464,4]
[365655174,1749821440507,-609.67,0.00022464,4]
[365655175,1749821440517,-646.42,0.00022464,4]
[365655176,1749821440527,-609.14,0.00022464,4]
[365655177,1749821440538,-460.0,0.00022465,2]
[365655178,1749821440548,-465.85,0.00022465,4]
[365655179,1749821440558,-460.0,0.00022465,4]
[365655180,1749821440568,-460.0,0.00022465,4]
[365655181,1749821440578,-460.0,0.00022465,4]
[365655182,1749821440588,-1004.53,0.00022465,4]
[365655183,1749821440598,-460.0,0.00022465,4]
[365655184,1749821440608,-782.70111143,0.00022546,2]
[365655185,1749821440617,-500.0,0.00022598,2]
[365655186,1749821440627,-500.0,0.00022598,2]
[365655187,1749821440637,-500.0,0.00022598,2]
[365655188,1749821440647,-500.0,0.00022598,2]
[365655189,1749821440656,-500.0,0.00022598,2]
[365655190,1749821440667,-414.38405457,0.00022598,2]
[365655191,1749821440676,-500.0,0.00022598,2]
[365655192,1749821440686,-202.9008829,0.00022598,2]
[365655193,1749821440696,-500.0,0.00022598,2]
[365655194,1749821440706,-500.0,0.00022598,2]
[365655195,1749821440716,-500.0,0.00022598,2]
[365655196,1749821440726,-151.35033182,0.00022599,2]
[365655197,1749821440735,-500.0,0.00022599,2]
[365655198,1749821440745,-5000.0,0.00022599,2]
[365655199,1749821440756,-500.0,0.00022599,2]
[365655200,1749821440766,-500.0,0.00022599,2]
[365655201,1749821440776,-500.0,0.00022599,2]
[365655202,1749821440786,-500.0,0.00022599,2]
[365655203,1749821440796,-500.0,0.00022599,2]
[365655204,1749821440806,-500.0,0.00022599,2]
[365655205,1749821440815,-500.0,0.00022599,2]
[365655206,1749821440825,-500.0,0.00022599,2]
[365655207,1749821440835,-500.0,0.00022599,2]
[365655208,1749821440845,-500.0,0.00022599,2]
[365655209,1749821440855,-500.0,0.00022599,2]
[365655210,1749821440864,-500.0,0.00022599,2]
[365655211,1749821440874,-500.0,0.00022599,2]
[365655212,1749821440884,-500.0,0.00022599,2]
[365655213,1749821440896,-500.0,0.00022599,2]
[365655214,1749821440906,-500.0,0.00022599,2]
[365655215,1749821440916,-500.0,0.00022599,2]
[365655216,1749821440926,-207.4,0.00022599,2]
[365655217,1749821441048,-500.0,0.00022599,2]
[365655218,1749821441058,-500.0,0.00022599,2]
[365655219,1749821441068,-500.0,0.00022599,2]
[365655220,1749821441079,-500.0,0.00022599,2]
[365655221,1749821441091,-500.0,0.00022599,2]
[365655222,1749821441099,-500.0,0.00022599,2]
[365655223,1749821441107,-500.0,0.00022599,2]
[365655224,1749821441115,-500.0,0.00022599,2]
[365655225,1749821441123,-500.0,0.00022599,2]
[365655226,1749821441131,-500.0,0.00022599,2]
[365655227,1749821441139,-500.0,0.00022599,2]
[365655228,1749821441147,-500.0,0.00022599,2]
[365655229,1749821441155,-1628.74046315,0.00022624,7]
[365655230,1749821441164,-351.85,0.00022636,3]
[365655231,1749821441173,-1220.57,0.00022646,4]
[365655232,1749821441183,-460.0,0.00022646,4]
[365655233,1749821441193,-175.92,0.00022647,3]
[365655234,1749821441204,-527.81,0.00022649,3]
[365655235,1749821441215,-2473.0,0.00022657,2]
[365655236,1749821441226,-693.94243799,0.00022659,2]
[365655237,1749821441235,-153.0,0.00022671,2]
[365655238,1749821441245,-153.0,0.00022671,2]
[365655239,1749821441255,-153.0,0.00022671,2]
[365655240,1749821441264,-153.0,0.00022672,2]
[365655241,1749821441273,-153.0,0.00022672,2]
[365655242,1749821441283,-153.0,0.00022674,2]
[365655243,1749821441296,-153.0,0.00022674,2]
[365655244,1749821441306,-1000.0,0.00022681,2]
[365655245,1749821441315,-1000.0,0.00022687,2]
[365655246,1749821441325,-700.39,0.00022738,4]
[365655247,1749821441338,-564.88,0.00022738,4]
[365655248,1749821441348,-697.68,0.00022738,4]
[365655249,1749821441357,-304.96915223,0.00022738,4]
[365655250,1749821441367,-483.7026089,0.00022738,4]
[365655251,1749821441379,-460.0,0.00022738,4]
[365655252,1749821441389,-1380.34,0.00022738,4]
[365655253,1749821441399,-460.0,0.00022738,4]
[365655254,1749821441408,-609.67,0.00022738,4]
[365655255,1749821441418,-646.42,0.00022738,4]
[365655256,1749821441427,-609.14,0.00022738,4]
[365655257,1749821441436,-460.0,0.00022739,2]
[365655258,1749821441446,-465.85,0.00022739,4]
[365655259,1749821441455,-460.0,0.00022739,4]
[365655260,1749821441465,-460.0,0.00022739,4]
[365655261,1749821441475,-460.0,0.00022739,4]
[365655262,1749821441484,-1004.53,0.00022739,4]
[365655263,1749821441493,-460.0,0.00022739,4]
[365655264,1749821441503,-2473.0,0.00022753,2]
[365655265,1749821441512,-500.0,0.00022791,2]
[365655266,1749821441522,-502.7857742,0.00022791,2]
[365655267,1749821441531,-500.0,0.00022791,2]
[365655268,1749821441541,-1000.0,0.00022791,2]
[365655269,1749821441550,-1628.74046315,0.00022831,8]
[365655270,1749821441560,-160.0,0.00022886,4]
[365655271,1749821441569,-39866.23518326,0.000229,2]
[365655272,1749821441579,-1220.57,0.0002292,4]
[365655273,1749821441588,-460.0,0.0002292,4]
[365655274,1749821441598,-1000.0,0.00022923,2]
[365655275,1749821441608,-420.0,0.00022943,2]
[365655276,1749821441617,-500.0,0.00022973,2]
[365655277,1749821441627,-500.0,0.00022973,2]
[365655278,1749821441636,-500.0,0.00022973,2]
[365655279,1749821441650,-418.28863315,0.00022973,2]
[365655280,1749821441659,-500.0,0.00022973,2]
[365655281,1749821441668,-500.0,0.00022973,2]
[365655282,1749821441677,-508.50880777,0.00022973,2]
[365655283,1749821441687,-500.0,0.00022973,2]
[365655284,1749821441696,-507.6131257,0.00022973,2]
[365655285,1749821441705,-503.18092134,0.00022973,2]
[365655286,1749821441715,-500.0,0.00022973,2]
[365655287,1749821441726,-500.0,0.00022973,2]
[365655288,1749821441735,-500.0,0.00022973,2]
[365655289,1749821441745,-1000.0,0.00023,23]
[365655290,1749821441754,-168.0,0.00023,5]
[365655291,1749821441763,-168.53531839,0.00023,4]
[365655292,1749821441773,-132805.27714238,0.00023,2]
[365655293,1749821441782,-248.71259222,0.00023,2]
[365655294,1749821441792,-1127.42139629,0.00023,2]
[365655295,1749821441801,-6750.0,0.00023,2]
[365655296,1749821441810,-44175.12758854,0.00023,2]
[365655297,1749821441820,-10043.38789823,0.00023,2]
[365655298,1749821441829,-356948.7550305,0.00023,20]
[365655299,1749821441838,-500.0,0.00023012,3]
[365655300,1749821441851,-700.39,0.00023012,4]
[365655301,1749821441860,-564.88,0.00023012,4]
[365655302,1749821441870,-697.68,0.00023012,4]
[365655303,1749821441879,-460.0,0.00023012,4]
[365655304,1749821441888,-460.0,0.00023012,4]
[365655305,1749821441897,-609.67,0.00023012,4]
[365655306,1749821441906,-646.42,0.00023012,4]
[365655307,1749821441915,-609.14,0.00023012,4]
[365655308,1749821441924,-460.0,0.00023013,2]
[365655309,1749821441933,-465.85,0.00023013,4]
[365655310,1749821441942,-460.0,0.00023013,4]
[365655311,1749821441951,-460.0,0.00023013,4]
[365655312,1749821441960,-460.0,0.00023013,4]
[365655313,1749821441970,-1004.53,0.00023013,4]
[365655314,1749821441980,-460.0,0.00023013,4]
[365655315,1749821441988,-168.0,0.00023017,2]
[365655316,1749821441998,-782.70111142,0.00023035,2]
[365655317,1749821442007,-1628.74046315,0.00023038,8]
[365655318,1749821442016,-2473.0,0.00023085,2]
[365655319,1749821442026,-500.0,0.00023156,2]
[365655320,1749821442035,-213.24139183,0.00023178,2]
[365655321,1749821442044,-229.78555783,0.00023178,2]
[365655322,1749821442053,-160.0,0.00023178,2]
[365655323,1749821442062,-405.0,0.00023185,2]
[365655324,1749821442071,-1220.57,0.00023194,4]
[365655325,1749821442081,-460.0,0.00023194,4]
[365655326,1749821442091,-1500.0,0.00023229,2]
[365655327,1749821442100,-500.0,0.00023235,2]
[365655328,1749821442108,-168.0,0.00023242,2]
[365655329,1749821442118,-1628.74046315,0.00023245,8]
[365655330,1749821442127,-168.0,0.00023265,2]
[365655331,1749821442136,-700.39,0.00023286,4]
[365655332,1749821442145,-564.88,0.00023286,4]
[365655333,1749821442155,-697.68,0.00023286,4]
[365655334,1749821442165,-460.0,0.00023286,4]
[365655335,1749821442174,-460.0,0.00023286,4]
[365655336,1749821442183,-609.67,0.00023286,4]
[365655337,1749821442193,-646.42,0.00023286,4]
[365655338,1749821442202,-609.14,0.00023286,4]
[365655339,1749821442211,-460.0,0.00023287,2]
[365655340,1749821442221,-465.85,0.00023287,4]
[365655341,1749821442230,-460.0,0.00023287,4]
[365655342,1749821442240,-460.0,0.00023287,4]
[365655343,1749821442250,-460.0,0.00023287,4]
[365655344,1749821442260,-1004.53,0.00023287,4]
[365655345,1749821442270,-460.0,0.00023287,4]
[365655346,1749821442279,-519.2447875,0.00023339,2]
[365655347,1749821442289,-823.0,0.00023381,2]
[365655348,1749821442301,-1628.74046315,0.00023452,9]
[365655349,1749821442311,-1220.57,0.00023468,4]
[365655350,1749821442322,-460.0,0.00023468,4]
[365655351,1749821442342,-269.42541527,0.00023471,2]
[365655352,1749821442352,-5426.0,0.000235,2]
[365655353,1749821442361,-5426.0,0.000235,2]
[365655354,1749821442371,-5426.0,0.000235,2]
[365655355,1749821442382,-5426.0,0.000235,2]
[365655356,1749821442392,-5426.0,0.000235,2]
[365655357,1749821442401,-5426.0,0.000235,2]
[365655358,1749821442411,-1895.788562,0.0002352,3]
[365655359,1749821442421,-1009.04374065,0.00023521,2]
[365655360,1749821442430,-1037.978401,0.00023521,2]
[365655361,1749821442440,-505.47568824,0.00023521,2]
[365655362,1749821442450,-500.0,0.00023521,2]
[365655363,1749821442459,-500.0,0.00023521,2]
[365655364,1749821442469,-500.0,0.00023521,2]
[365655365,1749821442479,-1000.0,0.00023521,2]
[365655366,1749821442489,-782.70111142,0.00023523,2]
[365655367,1749821442499,-229.39,0.0002356,4]
[365655368,1749821442509,-700.39,0.0002356,4]
[365655369,1749821442519,-564.88,0.0002356,4]
[365655370,1749821442529,-697.68,0.0002356,4]
[365655371,1749821442539,-460.0,0.0002356,4]
[365655372,1749821442549,-460.0,0.0002356,4]
[365655373,1749821442559,-609.67,0.0002356,4]
[365655374,1749821442569,-646.42,0.0002356,4]
[365655375,1749821442579,-609.14,0.0002356,4]
[365655376,1749821442590,-460.0,0.00023561,2]
[365655377,1749821442600,-465.85,0.00023561,4]
[365655378,1749821442611,-460.0,0.00023561,4]
[365655379,1749821442621,-460.0,0.00023561,4]
[365655380,1749821442631,-460.0,0.00023561,4]
[365655381,1749821442641,-1004.53,0.00023561,4]
[365655382,1749821442651,-460.0,0.00023561,4]
[365655383,1749821442662,-1628.74046315,0.00023659,9]
[365655384,1749821442672,-1220.57,0.00023742,4]
[365655385,1749821442681,-460.0,0.00023742,4]
[365655386,1749821442692,-332.33359664,0.00023773,2]
[365655387,1749821442702,-500.0,0.00023773,2]
[365655388,1749821442712,-500.0,0.00023773,2]
[365655389,1749821442723,-600.0,0.00023773,2]
[365655390,1749821442733,-500.0,0.00023773,2]
[365655391,1749821442744,-500.0,0.00023773,2]
[365655392,1749821442754,-2000.0,0.00023777,2]
[365655393,1749821442764,-744890.7284658,0.0002378,5]
[365655394,1749821442774,-501.46120462,0.0002378,9]
[365655395,1749821442785,-153396.84746657,0.00023798,2]
[365655396,1749821442795,-21783.96163238,0.000238,2]
[365655402,1749821442950,-286.37636737,0.00021916,4]
[365655404,1749821442962,-173.62363263,0.00021916,4]
[365655406,1749821442972,-264.7538295,0.0002219,4]
[365655603,1749821446533,-195.2461705,0.0002219,4]
[365655605,1749821446542,-460.0,0.00022464,4]
[365655607,1749821446552,-460.0,0.00022738,4]
[365655609,1749821446562,-1241.85,0.0002289,10]
[365655611,1749821446571,-460.0,0.00023012,4]
[365655613,1749821446580,-460.0,0.00023286,4]
[365655615,1749821446590,-2211.753322,0.0002352,3]
[365655616,1749821446603,-460.0,0.0002356,4]
[365655619,1749821446613,-2585.03798293,0.000238,2]
[365655621,1749821446626,-5016.50011848,0.000238,2]
[365655677,1749821523254,-300.0,0.00020553,2]
[365655678,1749821523277,-500.0,0.00020554,2]
[365655679,1749821523300,-500.0,0.00020554,2]
[365655680,1749821523324,-500.0,0.00020554,2]
[365655681,1749821523352,-500.0,0.00020554,2]
[365655682,1749821523375,-500.0,0.00020554,2]
[365655683,1749821523397,-500.0,0.00020554,2]
[365655684,1749821523428,-500.0,0.00020554,2]
[365655685,1749821523450,-484.31176733,0.00020554,2]
[365655686,1749821523473,-500.0,0.00020554,2]
[365655687,1749821523649,-531.7587969,0.00020554,2]
[365655688,1749821523683,-400.92943577,0.00020554,2]
[365655696,1749821700902,852.299545,0.00024973,60]
[365655698,1749821804546,160.954004,0.00013699,2]
[365655700,1749821848333,-163.82220355,0.00018,2]
[365655701,1749821848366,-951.17779645,0.0002,20]
[365655702,1749821914362,-48.82220355,0.0002,20]
[365655703,1749821914385,-5201.17779645,0.0002,2]
[365655721,1749822434359,-682.0,0.000189,2]
[365655730,1749822502970,-45.4128414,0.000189,2]
[365655731,1749822502994,-1903.2098876,0.00019755,2]
[365655732,1749822503017,-179.24767,0.00019831,2]
[365655733,1749822503041,-1963.129601,0.00019917,2]
[365655769,1749822632341,-300.0,0.00019867,2]
[365655771,1749822632351,-300.0,0.00019867,2]
[365655773,1749822632360,-300.0,0.00019867,2]
[365655774,1749822632370,-300.0,0.00019867,2]
[365655775,1749822632379,-1200.0,0.00019867,2]
[365655776,1749822632389,-24900.0,0.00019868,2]
[365655777,1749822632399,-47.3962666,0.00019917,2]
[365655778,1749822632409,-178.82220355,0.0002,2]
[365655779,1749822632419,-240.04429,0.00020062,2]
[365655780,1749822632428,-700.406299,0.00020066,2]
[365655782,1749822632438,-1108.8121291,0.00020075,2]
[365655784,1749822632447,-576.16104925,0.000209,4]
[365655786,1749822632456,-500.0,0.00020964,2]
[365655787,1749822632466,-1000.0,0.00021,21]
[365655788,1749822632475,-576.16104901,0.00021038,4]
[365655789,1749822632484,-1241.85,0.00021085,10]
[365655790,1749822632494,-1034.88,0.00021085,10]
[365655792,1749822632503,-862.4,0.00021085,10]
[365655794,1749822632512,-300.0,0.00021093,2]
[365655796,1749822632522,-199.28,0.00021094,2]
[365655798,1749822632531,-460.0,0.00021095,4]
[365655800,1749822632542,-460.0,0.00021095,4]
[365655802,1749822632551,-460.0,0.00021095,4]
[365655804,1749822632560,-460.0,0.00021095,4]
[365655806,1749822632570,-460.0,0.00021095,4]
[365655808,1749822632579,-460.0,0.00021095,4]
[365655810,1749822632588,-460.0,0.00021095,4]
[365655812,1749822632598,-420.0,0.00021095,4]
[365655814,1749822632607,-460.0,0.00021095,4]
[365655816,1749822632616,-460.0,0.00021095,4]
[365655818,1749822632626,-460.0,0.00021095,4]
[365655820,1749822632636,-320.0,0.00021095,4]
[365655822,1749822632645,-460.0,0.00021095,4]
[365655824,1749822632655,-460.0,0.00021095,4]
[365655826,1749822632664,-430.58295268,0.00021095,4]
[365655828,1749822632673,-460.0,0.00021095,4]
[365655829,1749822632685,-460.0,0.00021095,4]
[365655831,1749822632697,-460.0,0.00021095,4]
[365655833,1749822632706,-460.0,0.00021095,4]
[365655835,1749822632715,-440.0,0.00021095,4]
[365655837,1749822632724,-420.0,0.00021095,4]
[365655839,1749822632735,-440.0,0.00021095,4]
[365655841,1749822632743,-460.0,0.00021095,4]
[365655843,1749822632753,-500.0,0.00021095,2]
[365655845,1749822632764,-420.0,0.00021095,4]
[365655847,1749822632773,-440.0,0.00021095,4]
[365655849,1749822632782,-460.0,0.00021095,4]
[365655851,1749822632793,-460.0,0.00021095,4]
[365655853,1749822632802,-460.0,0.00021095,4]
[365655855,1749822632812,-440.0,0.00021095,4]
[365655857,1749822632821,-460.0,0.00021095,4]
[365655859,1749822632830,-460.0,0.00021095,4]
[365655861,1749822632839,-460.0,0.00021095,4]
[365655863,1749822632849,-420.0,0.00021095,4]
[365655865,1749822632858,-440.0,0.00021095,4]
[365655867,1749822632867,-460.0,0.00021095,4]
[365655869,1749822632877,-460.0,0.00021095,4]
[365655871,1749822632886,-460.0,0.00021095,4]
[365655873,1749822632895,-460.0,0.00021095,4]
[365655875,1749822632904,-460.0,0.00021095,4]
[365655877,1749822632914,-440.0,0.00021095,4]
[365655879,1749822632923,-460.0,0.00021095,4]
[365655881,1749822632933,-420.0,0.00021095,4]
[365655883,1749822632942,-440.0,0.00021095,4]
[365655885,1749822632954,-460.0,0.00021095,4]
[365655887,1749822632963,-460.0,0.00021095,4]
[365655889,1749822632973,-460.0,0.00021095,4]
[365655892,1749822632983,-460.0,0.00021095,4]
[365655894,1749822632992,-460.0,0.00021095,4]
[365655896,1749822633002,-460.0,0.00021095,4]
[365655898,1749822633012,-440.0,0.00021095,4]
[365655900,1749822633022,-440.0,0.00021095,4]
[365655902,1749822633031,-400.0,0.00021095,4]
[365655904,1749822633041,-460.0,0.00021095,4]
[365655906,1749822633050,-440.0,0.00021095,4]
[365655908,1749822633060,-460.0,0.00021095,4]
[365655910,1749822633070,-460.0,0.00021095,4]
[365655912,1749822633080,-678.25,0.00021095,4]
[365655914,1749822633090,-313.3,0.00021095,4]
[365655916,1749822633100,-440.0,0.00021095,4]
[365655917,1749822633109,-460.0,0.00021095,4]
[365655919,1749822633120,-460.0,0.00021095,4]
[365655921,1749822633130,-460.0,0.00021095,4]
[365655923,1749822633140,-460.0,0.00021095,4]
[365655926,1749822633150,-460.0,0.00021095,4]
[365655928,1749822633159,-460.0,0.00021095,4]
[365655930,1749822633169,-440.0,0.00021095,4]
[365655932,1749822633182,-892.67,0.00021095,4]
[365655934,1749822633191,-460.0,0.00021095,4]
[365655936,1749822633201,-460.0,0.00021095,4]
[365655938,1749822633210,-460.0,0.00021095,4]
[365655940,1749822633220,-499.05685102,0.00021095,4]
[365655942,1749822633230,-440.0,0.00021095,4]
[365655944,1749822633240,-460.0,0.00021095,4]
[365655946,1749822633250,-460.0,0.00021095,4]
[365655948,1749822633260,-440.0,0.00021095,4]
[365655950,1749822633270,-886.49,0.00021095,4]
[365655951,1749822633280,-460.0,0.00021095,4]
[365655954,1749822633290,-460.0,0.00021095,4]
[365655956,1749822633301,-440.0,0.00021095,4]
[365655958,1749822633311,-440.0,0.00021095,4]
[365655960,1749822633321,-440.0,0.00021095,4]
[365655962,1749822633331,-440.0,0.00021095,4]
[365655963,1749822633341,-460.0,0.00021095,4]
[365655965,1749822633351,-440.0,0.00021095,4]
[365655967,1749822633361,-460.0,0.00021095,4]
[365655969,1749822633371,-460.0,0.00021095,4]
[365655971,1749822633381,-400.0,0.00021095,4]
[365655973,1749822633391,-440.0,0.00021095,4]
[365655975,1749822633401,-420.0,0.00021095,4]
[365655977,1749822633411,-460.0,0.00021095,4]
[365655979,1749822633421,-440.0,0.00021095,4]
[365655981,1749822633430,-460.0,0.00021095,4]
[365655983,1749822633440,-460.0,0.00021095,4]
[365655986,1749822633450,-460.0,0.00021095,4]
[365655988,1749822633461,-460.0,0.00021095,4]
[365655990,1749822633471,-460.0,0.00021095,4]
[365655992,1749822633481,-460.0,0.00021095,4]
[365655993,1749822633493,-420.0,0.00021095,4]
[365655995,1749822633504,-460.0,0.00021095,4]
[365655997,1749822633513,-460.0,0.00021095,4]
[365655999,1749822633523,-430.0,0.00021095,4]
[365656001,1749822633533,-460.0,0.00021095,4]
[365656004,1749822633545,-440.08219242,0.00021095,4]
[365656006,1749822633555,-460.0,0.00021095,4]
[365656007,1749822633566,-460.0,0.00021095,4]
[365656009,1749822633576,-420.0,0.00021095,4]
[365656012,1749822633587,-460.0,0.00021095,4]
[365656013,1749822633597,-460.0,0.00021095,4]
[365656016,1749822633609,-460.0,0.00021095,4]
[365656018,1749822633619,-460.0,0.00021095,4]
[365656020,1749822633629,-440.0,0.00021095,4]
[365656022,1749822633639,-460.0,0.00021095,4]
[365656024,1749822633649,-460.0,0.00021095,4]
[365656026,1749822633659,-460.0,0.00021095,4]
[365656028,1749822633669,-1608.1,0.00021095,4]
[365656030,1749822633679,-460.0,0.00021095,4]
[365656032,1749822633691,-460.0,0.00021095,4]
[365656034,1749822633701,-460.0,0.00021095,4]
[365656036,1749822633711,-440.0,0.00021095,4]
[365656038,1749822633723,-460.0,0.00021095,4]
[365656040,1749822633734,-460.0,0.00021095,4]
[365656042,1749822633744,-460.0,0.00021095,4]
[365656044,1749822633755,-460.0,0.00021095,4]
[365656046,1749822633766,-440.0,0.00021095,4]
[365656048,1749822633776,-460.0,0.00021095,4]
[365656050,1749822633786,-509.61869405,0.00021095,4]
[365656052,1749822633801,-460.0,0.00021095,4]
[365656053,1749822633811,-460.0,0.00021095,4]
[365656055,1749822633821,-460.0,0.00021095,4]
[365656057,1749822633831,-69.63602332,0.00021095,4]
[365656060,1749822633848,-390.36397668,0.00021095,4]
[365656062,1749822633858,-460.0,0.00021095,4]
[365656064,1749822633868,-757.96,0.00021095,4]
[365656066,1749822633879,-440.0,0.00021095,4]
[365656068,1749822633889,-380.0,0.00021095,4]
[365656070,1749822633899,-460.0,0.00021095,4]
[365656072,1749822633910,-460.0,0.00021095,4]
[365656074,1749822633919,-440.0,0.00021095,4]
[365656076,1749822633930,-440.0,0.00021095,4]
[365656078,1749822633940,-401.61429903,0.00021095,4]
[365656080,1749822633950,-460.0,0.00021095,4]
[365656082,1749822633960,-460.0,0.00021095,4]
[365656084,1749822633972,-780.44,0.00021095,4]
[365656086,1749822633982,-440.0,0.00021095,4]
[365656088,1749822633992,-555.46,0.00021095,4]
[365656090,1749822634002,-460.0,0.00021095,4]
[365656092,1749822634012,-168.1776715,0.00021095,4]
[365656094,1749822634021,-460.0,0.00021095,4]
[365656096,1749822634031,-460.0,0.00021095,4]
[365656098,1749822634043,-460.0,0.00021095,4]
[365656100,1749822634053,-460.0,0.00021095,4]
[365656102,1749822634063,-460.0,0.00021095,4]
[365656104,1749822634073,-176.27061953,0.00021095,4]
[365656106,1749822634084,-151.0,0.00021122,4]
[365656108,1749822634094,-151.0,0.00021122,4]
[365656110,1749822634104,-151.0,0.00021122,2]
[365656112,1749822634113,-500.0,0.00021122,4]
[365656114,1749822634123,-153.80410712,0.00021122,4]
[365656116,1749822634133,-151.0,0.00021122,4]
[365656118,1749822634142,-151.0,0.00021122,4]
[365656120,1749822634152,-168.29269939,0.00021122,4]
[365656122,1749822634162,-151.0,0.00021122,4]
[365656124,1749822634172,-152.5372931,0.00021122,4]
[365656126,1749822634182,-152.84938735,0.00021122,4]
[365656128,1749822634192,-153.63842887,0.00021122,4]
[365656130,1749822634201,-151.0,0.00021122,4]